fUSD/lending_fUSD_20260624
["ID","MTS","AMOUNT","RATE_DAILY","PERIOD"]
[426326476,1782306632000,-249.89875,0.00013693,2]
[426326502,1782306632000,-500.0,0.00014999,2]
[426326501,1782306632000,-500.0,0.00014999,2]
[426326510,1782306632000,-303117.88052329,0.00015,2]
[426326512,1782306632000,-3278.08747363,0.00015,2]
[426326507,1782306632000,-34192.51024299,0.00015,2]
[426326500,1782306632000,-513.5209049,0.00014999,2]
[426326499,1782306632000,-500.0,0.00014999,2]
[426326492,1782306632000,-252.09,0.00014787,2]
[426326479,1782306632000,-314.0,0.00013698,2]
[426326496,1782306632000,-785.7660909,0.000149,2]
[426326497,1782306632000,-576.1648729,0.000149,2]
[426326498,1782306632000,-1306.244,0.00014999,2]
[426326494,1782306632000,-150.0,0.00014899,2]
[426326505,1782306632000,-503.98196252,0.00014999,2]
[426326504,1782306632000,-500.0,0.00014999,2]
[426326495,1782306632000,-155.44539098,0.000149,2]
[426326493,1782306632000,-214.0499212,0.00014847,2]
[426326515,1782306640000,-2588.90099454,0.000149,2]
[426326516,1782306640000,-2812.49844697,0.000149,2]
[426326518,1782306640000,-9060.9948405,0.000149,2]
[426326519,1782306640000,-3121.95,0.000149,2]
[426326520,1782306640000,-352.37,0.000149,2]
[426326527,1782306640000,-1627.0924642,0.000149,2]
[426326517,1782306640000,-1179.39143282,0.000149,2]
[426326529,1782306640000,-500.0,0.00014999,2]
[426326528,1782306640000,-500.0,0.00014999,2]
[426326534,1782306640000,-924.93223138,0.00015,2]
[426326531,1782306640000,-500.0,0.00014999,2]
[426326523,1782306640000,-1780.8007718,0.000149,2]
[426326530,1782306640000,-500.0,0.00014999,2]
[426326533,1782306640000,-867.61,0.00015,2]
[426326532,1782306640000,-2440591.92851132,0.00015,2]
[426326539,1782306641000,-744.48483938,0.00015,2]
[426326536,1782306641000,-895.83084527,0.00015,2]
[426326538,1782306641000,-4109.73339506,0.00015,2]
[426326537,1782306641000,-9041.31407793,0.00015,2]
[426326553,1782306643000,-14704.05915287,0.00015,2]
[426326554,1782306643000,-1562.5,0.00015,2]
[426326555,1782306643000,-1215.88816214,0.00015,2]
[426326552,1782306643000,-485.29999995,0.00015,2]
[426326556,1782306643000,-259.7,0.00015,2]
[426326580,1782306646000,-5978.836,0.00015,2]
[426326578,1782306646000,-1217.0,0.00015,2]
[426326577,1782306646000,-2670.26793638,0.00015,2]
[426326576,1782306646000,-414.283816,0.00015,2]
[426326575,1782306646000,-384.50318454,0.00015,2]
[426326574,1782306646000,-2803.34,0.00015,2]
[426326611,1782307408000,163.18660623,0.00026413,120]
[426326613,1782307528000,157.4443589,0.0002624,120]
[426326617,1782307570000,-166.66,0.00013357,2]
[426326702,1782307833000,-500.0,0.00013515,2]
[426326645,1782307833000,-500.0,0.00013515,2]
[426326644,1782307833000,-500.0,0.00013515,2]
[426326649,1782307833000,-173.98037102,0.00013515,2]
[426326646,1782307833000,-500.0,0.00013515,2]
[426326647,1782307833000,-500.0,0.00013515,2]
[426326651,1782307833000,-500.0,0.00013515,2]
[426326652,1782307833000,-500.0,0.00013515,2]
[426326640,1782307833000,-500.0,0.00013515,2]
[426326650,1782307833000,-500.0,0.00013515,2]
[426326653,1782307833000,-500.0,0.00013515,2]
[426326656,1782307833000,-500.0,0.00013515,2]
[426326657,1782307833000,-6.51276551,0.00013515,2]
[426326655,1782307833000,-14.11250744,0.00013515,2]
[426326658,1782307833000,-343.14613815,0.00013515,2]
[426326660,1782307833000,-500.0,0.00013515,2]
[426326659,1782307833000,-150.34109634,0.00013515,2]
[426326654,1782307833000,-485.88749256,0.00013515,2]
[426326661,1782307833000,-500.0,0.00013515,2]
[426326643,1782307833000,-500.0,0.00013515,2]
[426326641,1782307833000,-500.0,0.00013515,2]
[426326705,1782307833000,-500.0,0.00013515,2]
[426326625,1782307833000,-152.61,0.00013346,2]
[426326626,1782307833000,-443.23,0.00013461,2]
[426326636,1782307833000,-500.0,0.00013515,2]
[426326632,1782307833000,-407.65796554,0.00013515,2]
[426326637,1782307833000,-500.0,0.00013515,2]
[426326628,1782307833000,-245.6685425,0.00013461,2]
[426326642,1782307833000,-500.0,0.00013515,2]
[426326627,1782307833000,-399.37,0.00013461,2]
[426326629,1782307833000,-150.0,0.00013479,2]
[426326634,1782307833000,-500.0,0.00013515,2]
[426326633,1782307833000,-500.0,0.00013515,2]
[426326638,1782307833000,-500.0,0.00013515,2]
[426326631,1782307833000,-500.0,0.00013515,2]
[426326635,1782307833000,-500.0,0.00013515,2]
[426326639,1782307833000,-500.0,0.00013515,2]
[426326630,1782307833000,-150.0,0.00013514,2]
[426326662,1782307833000,-500.0,0.00013515,2]
[426326648,1782307833000,-326.01962898,0.00013515,2]
[426326674,1782307833000,-500.0,0.00013515,2]
[426326691,1782307833000,-500.0,0.00013515,2]
[426326687,1782307833000,-500.0,0.00013515,2]
[426326686,1782307833000,-208.03494553,0.00013515,2]
[426326690,1782307833000,-500.0,0.00013515,2]
[426326693,1782307833000,-500.0,0.00013515,2]
[426326696,1782307833000,-500.0,0.00013515,2]
[426326694,1782307833000,-500.0,0.00013515,2]
[426326689,1782307833000,-500.0,0.00013515,2]
[426326692,1782307833000,-500.0,0.00013515,2]
[426326698,1782307833000,-500.0,0.00013515,2]
[426326672,1782307833000,-500.0,0.00013515,2]
[426326699,1782307833000,-500.0,0.00013515,2]
[426326700,1782307833000,-500.0,0.00013515,2]
[426326703,1782307833000,-500.0,0.00013515,2]
[426326701,1782307833000,-500.0,0.00013515,2]
[426326704,1782307833000,-500.0,0.00013515,2]
[426326695,1782307833000,-500.0,0.00013515,2]
[426326688,1782307833000,-500.0,0.00013515,2]
[426326697,1782307833000,-500.0,0.00013515,2]
[426326680,1782307833000,-500.0,0.00013515,2]
[426326685,1782307833000,-500.0,0.00013515,2]
[426326665,1782307833000,-500.0,0.00013515,2]
[426326669,1782307833000,-500.0,0.00013515,2]
[426326667,1782307833000,-500.0,0.00013515,2]
[426326668,1782307833000,-500.0,0.00013515,2]
[426326670,1782307833000,-500.0,0.00013515,2]
[426326684,1782307833000,-500.0,0.00013515,2]
[426326675,1782307833000,-500.0,0.00013515,2]
[426326666,1782307833000,-500.0,0.00013515,2]
[426326681,1782307833000,-288.22695216,0.00013515,2]
[426326664,1782307833000,-500.0,0.00013515,2]
[426326682,1782307833000,-211.77304784,0.00013515,2]
[426326679,1782307833000,-42.78843318,0.00013515,2]
[426326677,1782307833000,-500.0,0.00013515,2]
[426326678,1782307833000,-457.21156682,0.00013515,2]
[426326676,1782307833000,-500.0,0.00013515,2]
[426326683,1782307833000,-500.0,0.00013515,2]
[426326713,1782307834000,-166.66,0.00013638,2]
[426326715,1782307834000,-170.13,0.00013655,2]
[426326712,1782307834000,-500.0,0.00013637,2]
[426326714,1782307834000,-200.0,0.0001365,2]
[426326706,1782307834000,-536.95,0.00013516,2]
[426326709,1782307834000,-500.0,0.00013636,2]
[426326707,1782307834000,-339.78361355,0.00013636,2]
[426326708,1782307834000,-408.12584335,0.00013636,2]
[426326717,1782307834000,-216.42324807,0.00013695,2]
[426326711,1782307834000,-509.59400242,0.00013636,2]
[426326716,1782307834000,-158.64,0.00013687,2]
[426326723,1782307834000,-181.46,0.00014181,2]
[426326710,1782307834000,-159.91421404,0.00013636,2]
[426326719,1782307834000,-500.0,0.00013911,2]
[426326721,1782307834000,-250.0,0.00014,2]
[426326720,1782307834000,-166.66,0.00013919,2]
[426326722,1782307834000,-150.0,0.00014165,2]
[426326724,1782307834000,-500.0,0.00014185,2]
[426326725,1782307834000,-166.66,0.000142,2]
[426326728,1782307834000,-442696.55054643,0.00014418,2]
[426326726,1782307834000,-3948.4,0.00014226,2]
[426326727,1782307834000,-206.47,0.00014272,2]
[426326718,1782307834000,-200.0,0.00013699,2]
[426326739,1782307838000,-586.34883741,0.00014418,2]
[426326734,1782307838000,-33270.0,0.00014418,2]
[426326736,1782307838000,-868.8880961,0.00014418,2]
[426326737,1782307838000,-404.3482089,0.00014418,2]
[426326738,1782307838000,-426.4607146,0.00014418,2]
[426326735,1782307838000,-1351.90172374,0.00014418,2]
[426326741,1782307838000,-1288.12556079,0.00014418,2]
[426326742,1782307838000,-345.97631323,0.00014418,2]
[426326744,1782307838000,-2309.85390139,0.00014418,2]
[426326745,1782307838000,-2407.07201715,0.00014418,2]
[426326743,1782307838000,-2135.38609894,0.00014418,2]
[426326746,1782307838000,-700.0,0.00014418,2]
[426326740,1782307838000,-2733.98074258,0.00014418,2]
[426326775,1782307840000,-274.1670714,0.00014399,2]
[426326776,1782307840000,-22818.91392668,0.00014418,2]
[426326777,1782307840000,-790.5766307,0.00014418,2]
[426326778,1782307840000,-3100.0,0.00014418,2]
[426326779,1782307840000,-2812.49032896,0.00014418,2]
[426326845,1782307843000,-46451.88,0.00014701,2]
[426326855,1782307843000,-699.86128098,0.000148,2]
[426326858,1782307843000,-600.0,0.00014807,2]
[426326856,1782307843000,-797.60360381,0.000148,2]
[426326867,1782307843000,-250.0,0.00014807,2]
[426326860,1782307843000,-600.0,0.00014807,2]
[426326859,1782307843000,-600.0,0.00014807,2]
[426326861,1782307843000,-600.0,0.00014807,2]
[426326865,1782307843000,-300.0,0.00014807,2]
[426326862,1782307843000,-300.0,0.00014807,2]
[426326854,1782307843000,-620.0,0.0001478,2]
[426326866,1782307843000,-300.0,0.00014807,2]
[426326863,1782307843000,-300.0,0.00014807,2]
[426326848,1782307843000,-500.0,0.0001478,2]
[426326849,1782307843000,-500.0,0.0001478,2]
[426326852,1782307843000,-500.0,0.0001478,2]
[426326850,1782307843000,-500.0,0.0001478,2]
[426326851,1782307843000,-500.0,0.0001478,2]
[426326864,1782307843000,-300.0,0.00014807,2]
[426326847,1782307843000,-500.0,0.0001478,2]
[426326846,1782307843000,-166.66,0.00014763,2]
[426326844,1782307843000,-8012.9957,0.000147,2]
[426326841,1782307843000,-1292.87,0.00014559,2]
[426326838,1782307843000,-166.66,0.00014482,2]
[426326839,1782307843000,-986.0,0.00014506,2]
[426326843,1782307843000,-207.36642358,0.00014681,2]
[426326840,1782307843000,-21058.10448024,0.00014518,2]
[426326842,1782307843000,-255.0,0.00014622,2]
[426326837,1782307843000,-162317.1463524,0.00014418,2]
[426326853,1782307843000,-500.0,0.0001478,2]
[426326868,1782307843000,-989.57114997,0.00014899,2]
[426326857,1782307843000,-600.0,0.00014807,2]
[426326870,1782307843000,-507.10545596,0.00014899,2]
[426326869,1782307843000,-500.0,0.00014899,2]
[426326908,1782307843000,-500.0,0.00014999,2]
[426326911,1782307843000,-2390.99876712,0.00015,2]
[426326898,1782307843000,-500.0,0.00014999,2]
[426326894,1782307843000,-500.0,0.00014999,2]
[426326891,1782307843000,-500.0,0.00014999,2]
[426326906,1782307843000,-500.0,0.00014999,2]
[426326895,1782307843000,-500.0,0.00014999,2]
[426326904,1782307843000,-500.0,0.00014999,2]
[426326892,1782307843000,-500.0,0.00014999,2]
[426326889,1782307843000,-500.0,0.00014999,2]
[426326902,1782307843000,-500.0,0.00014999,2]
[426326900,1782307843000,-500.0,0.00014999,2]
[426326890,1782307843000,-500.0,0.00014999,2]
[426326885,1782307843000,-3038.4814559,0.00014998,2]
[426326888,1782307843000,-500.0,0.00014998,2]
[426326886,1782307843000,-7777.6592642,0.00014998,2]
[426326876,1782307843000,-500.0,0.00014899,2]
[426326871,1782307843000,-500.0,0.00014899,2]
[426326875,1782307843000,-500.0,0.00014899,2]
[426326877,1782307843000,-500.0,0.00014899,2]
[426326872,1782307843000,-500.0,0.00014899,2]
[426326873,1782307843000,-510.5756982,0.00014899,2]
[426326887,1782307843000,-2053.5234848,0.00014998,2]
[426326878,1782307843000,-221.35471241,0.00014899,2]
[426326880,1782307843000,-155.44539098,0.000149,2]
[426326881,1782307843000,-1292.87,0.00014923,2]
[426326879,1782307843000,-500.0,0.00014899,2]
[426326882,1782307843000,-500.0,0.00014997,2]
[426326883,1782307843000,-3269.2752736,0.00014998,2]
[426326884,1782307843000,-3223.0810406,0.00014998,2]
[426326874,1782307843000,-500.0,0.00014899,2]
[426326915,1782307844000,-3827.49083931,0.00015,2]
[426326916,1782307844000,-618.47086119,0.00015,2]
[426326919,1782307844000,-9534.05378606,0.00015,2]
[426326918,1782307844000,-287.2012,0.00015,2]
[426326924,1782307844000,-1042.12961819,0.00015,2]
[426326921,1782307844000,-448.67238083,0.00015,2]
[426326923,1782307844000,-1792.75153192,0.00015,2]
[426326925,1782307844000,-2467.38440413,0.00015,2]
[426326917,1782307844000,-1550.0,0.00015,2]
[426326936,1782307846000,-1490.89436833,0.00015,2]
[426326934,1782307846000,-369.24314172,0.00015,2]
[426326935,1782307846000,-1242.48,0.00015,2]
[426326933,1782307846000,-2340.98,0.00015,2]
[426326931,1782307846000,-83764.53228411,0.00015,2]
[426326932,1782307846000,-4968.65150895,0.00015,2]
[426326930,1782307846000,-450.0,0.00015,2]
[426326929,1782307846000,-2411.9937147,0.00015,2]
[426326943,1782308531000,-698.73799967,0.00013471,2]
[426326944,1782308549000,-698.73799967,0.00013471,2]
[426326946,1782308569000,-1580.67653147,0.00013471,2]
[426326953,1782308892000,-9041.31407793,0.00013,2]
[426326954,1782308913000,-9041.31407793,0.00013,2]
[426326955,1782308933000,-4109.73339506,0.00013,2]
[426326956,1782308953000,-4109.73339506,0.00013,2]
[426326957,1782308972000,-1830.3439398,0.00013,2]
[426326958,1782308992000,-1830.3439398,0.00013,2]
[426326959,1782309012000,-5843.9025168,0.00013,2]
[426326972,1782309032000,-461.93994982,0.00012999,2]
[426326990,1782309035000,-160.0,0.00013,2]
[426326983,1782309035000,-1605.16,0.00013,2]
[426326984,1782309035000,-959.58057949,0.00013,2]
[426326985,1782309035000,-332.54,0.00013,2]
[426326986,1782309035000,-372.414,0.00013,2]
[426326987,1782309035000,-471.99216239,0.00013,2]
[426326989,1782309035000,-150.17,0.00013,2]
[426326988,1782309035000,-104418.69843495,0.00013,2]
[426326991,1782309035000,-150.0,0.00013189,2]
[426326992,1782309035000,-237.34,0.00013306,2]
[426326993,1782309035000,-200.0,0.00013374,2]
[426326998,1782309035000,-166.66,0.00013865,2]
[426326995,1782309035000,-166.66,0.00013579,2]
[426326994,1782309035000,-1148.36746919,0.00013471,2]
[426326999,1782309035000,-1241.51,0.00013998,2]
[426326996,1782309035000,-152.03,0.00013602,2]
[426326997,1782309035000,-1241.51,0.00013657,2]
[426327001,1782309035000,-8647.29,0.00014108,2]
[426327000,1782309035000,-250.0,0.00014,2]
[426327003,1782309036000,-44683.1906,0.00014118,2]
[426327002,1782309036000,-86439.9777,0.00014118,2]
[426327005,1782309036000,-1000.0,0.00014217,2]
[426327004,1782309036000,-166.66,0.0001415,2]
[426327007,1782309036000,-1501.33006645,0.00014218,2]
[426327009,1782309036000,-3865.91088016,0.00014218,2]
[426327008,1782309036000,-19920.66040751,0.00014218,2]
[426327010,1782309036000,-822.2538549,0.00014218,2]
[426327006,1782309036000,-20338.52205225,0.00014218,2]
[426327021,1782309038000,-3173.45,0.00014218,2]
[426327036,1782309040000,-600.0,0.000143,2]
[426327045,1782309040000,-299.52221628,0.000143,2]
[426327047,1782309040000,-150.0,0.00014317,2]
[426327046,1782309040000,-150.0,0.00014317,2]
[426327042,1782309040000,-300.0,0.000143,2]
[426327043,1782309040000,-300.0,0.000143,2]
[426327040,1782309040000,-300.0,0.000143,2]
[426327041,1782309040000,-300.0,0.000143,2]
[426327044,1782309040000,-300.0,0.000143,2]
[426327039,1782309040000,-300.0,0.000143,2]
[426327030,1782309040000,-500.0,0.000143,2]
[426327025,1782309040000,-4794.68077277,0.00014218,2]
[426327035,1782309040000,-600.0,0.000143,2]
[426327034,1782309040000,-600.0,0.000143,2]
[426327032,1782309040000,-475.44148295,0.000143,2]
[426327033,1782309040000,-600.0,0.000143,2]
[426327031,1782309040000,-124.55851705,0.000143,2]
[426327026,1782309040000,-163.66533043,0.00014218,2]
[426327027,1782309040000,-250.0,0.000143,2]
[426327037,1782309040000,-190.35851705,0.000143,2]
[426327023,1782309040000,-323.35796488,0.00012998,2]
[426327024,1782309040000,-749.50218466,0.00014218,2]
[426327028,1782309040000,-200.0,0.000143,2]
[426327038,1782309040000,-109.64148295,0.000143,2]
[426327029,1782309040000,-300.0,0.000143,2]
[426327057,1782309040000,-151.0,0.00014317,2]
[426327048,1782309040000,-151.0,0.00014317,2]
[426327078,1782309040000,-151.0,0.00014418,2]
[426327076,1782309040000,-150.0,0.00014418,2]
[426327074,1782309040000,-152.0,0.00014418,2]
[426327081,1782309040000,-166.66,0.00014436,2]
[426327072,1782309040000,-151.0,0.00014418,2]
[426327066,1782309040000,-319.0,0.00014318,2]
[426327063,1782309040000,-500.0,0.00014318,2]
[426327067,1782309040000,-1241.51,0.0001434,2]
[426327065,1782309040000,-150.0,0.00014318,2]
[426327068,1782309040000,-500.0,0.00014418,2]
[426327064,1782309040000,-500.0,0.00014318,2]
[426327061,1782309040000,-151.0,0.00014318,2]
[426327060,1782309040000,-151.0,0.00014318,2]
[426327058,1782309040000,-151.0,0.00014317,2]
[426327070,1782309040000,-151.0,0.00014418,2]
[426327059,1782309040000,-151.0,0.00014317,2]
[426327055,1782309040000,-151.0,0.00014317,2]
[426327054,1782309040000,-116.63828933,0.00014317,2]
[426327050,1782309040000,-151.0,0.00014317,2]
[426327052,1782309040000,-35.36171067,0.00014317,2]
[426327056,1782309040000,-153.0,0.00014317,2]
[426327049,1782309040000,-151.0,0.00014317,2]
[426327062,1782309040000,-500.0,0.00014318,2]
[426327147,1782309041000,-500.0,0.00016877,2]
[426327146,1782309041000,-2026.25297461,0.000167,2]
[426327150,1782309041000,-20338.52205221,0.00017112,2]
[426327144,1782309041000,-2026.25297461,0.000165,2]
[426327148,1782309041000,-2026.25297461,0.000169,2]
[426327149,1782309041000,-2026.25297461,0.00017,2]
[426327145,1782309041000,-196.15,0.00016505,2]
[426327152,1782309041000,-2026.25297461,0.000172,2]
[426327138,1782309041000,-259.28067465,0.0001626,2]
[426327154,1782309041000,-3562.0,0.00017318,2]
[426327151,1782309041000,-1501.33006636,0.00017112,2]
[426327164,1782309041000,-785.89531563,0.00017923,2]
[426327168,1782309041000,-169.81,0.00018013,2]
[426327156,1782309041000,-1361.0,0.00017318,2]
[426327158,1782309041000,-1229.0,0.00017318,2]
[426327157,1782309041000,-383.0,0.00017318,2]
[426327159,1782309041000,-297.79863736,0.00017423,2]
[426327163,1782309041000,-525.35209551,0.00017923,2]
[426327162,1782309041000,-608.0,0.00017567,5]
[426327161,1782309041000,-156.0,0.00017567,5]
[426327160,1782309041000,-334.0,0.00017567,5]
[426327165,1782309041000,-1063.3392,0.00017923,2]
[426327166,1782309041000,-1004.77277059,0.00018,2]
[426327142,1782309041000,-367.0,0.00016438,2]
[426327167,1782309041000,-350.0,0.00018,2]
[426327153,1782309041000,-192.33,0.0001725,2]
[426327140,1782309041000,-2026.25297461,0.000164,2]
[426327109,1782309041000,-152.0,0.00015,2]
[426327125,1782309041000,-2026.25297461,0.000159,2]
[426327169,1782309041000,-20338.52205221,0.00018077,2]
[426327083,1782309041000,-3767.4492379,0.00014654,2]
[426327085,1782309041000,-879.6343448,0.00014654,2]
[426327092,1782309041000,-166.66,0.00014722,2]
[426327087,1782309041000,-162.7676315,0.00014665,2]
[426327090,1782309041000,-1241.51,0.00014681,2]
[426327094,1782309041000,-250.0,0.00014816,2]
[426327107,1782309041000,-151.0,0.00015,2]
[426327101,1782309041000,-8647.29,0.0001499,2]
[426327114,1782309041000,-1241.51,0.00015023,2]
[426327117,1782309041000,-20338.52205221,0.00015183,2]
[426327103,1782309041000,-220.18791893,0.0001499,2]
[426327123,1782309041000,-500.0,0.00015744,2]
[426327105,1782309041000,-1217886.06381888,0.00015,2]
[426327096,1782309041000,-250.0,0.00014816,2]
[426327099,1782309041000,-155.44539098,0.000149,2]
[426327116,1782309041000,-151.0,0.00015067,2]
[426327119,1782309041000,-1501.33006636,0.00015183,2]
[426327129,1782309041000,-300.0,0.00016,2]
[426327133,1782309041000,-1501.33006636,0.00016147,2]
[426327131,1782309041000,-20338.52205221,0.00016147,2]
[426327136,1782309041000,-2026.25297461,0.000162,2]
[426327121,1782309041000,-2026.25297461,0.000157,2]
[426327120,1782309041000,-276.49092418,0.00015519,2]
[426327122,1782309041000,-2000.0,0.00015744,2]
[426327127,1782309041000,-2026.25297461,0.00016,2]
[426327111,1782309041000,-166.66,0.00015008,2]
[426327175,1782309041000,-1004.77277059,0.000187,2]
[426327182,1782309041000,-1004.77277059,0.000191,2]
[426327172,1782309041000,-1004.77277059,0.000184,2]
[426327205,1782309041000,-400.0,0.0002,2]
[426327206,1782309041000,-20338.52205221,0.00020006,2]
[426327213,1782309041000,-151.0,0.00020353,2]
[426327204,1782309041000,-151.0,0.0002,2]
[426327207,1782309041000,-1501.33006636,0.00020006,2]
[426327208,1782309041000,-181.0,0.00020298,2]
[426327209,1782309041000,-3562.0,0.00020318,2]
[426327211,1782309041000,-383.0,0.00020318,2]
[426327212,1782309041000,-1229.0,0.00020318,2]
[426327210,1782309041000,-1361.0,0.00020318,2]
[426327215,1782309041000,-151.0,0.00020354,2]
[426327225,1782309041000,-20338.52205221,0.00020971,2]
[426327203,1782309041000,-518.0,0.0002,2]
[426327214,1782309041000,-151.0,0.00020353,2]
[426327173,1782309041000,-367.0,0.0001841,2]
[426327216,1782309041000,-151.0,0.00020356,2]
[426327218,1782309041000,-158.64,0.00020531,2]
[426327221,1782309041000,-489.820991,0.00020822,2]
[426327217,1782309041000,-367.0,0.00020381,2]
[426327219,1782309041000,-486.78213,0.000207,2]
[426327224,1782309041000,-489.820991,0.00020944,2]
[426327222,1782309041000,-3629.34528389,0.0002086,2]
[426327226,1782309041000,-1501.33006636,0.00020971,2]
[426327227,1782309041000,-292.73,0.00021,2]
[426327228,1782309041000,-50000.0,0.00021,2]
[426327229,1782309041000,-321.0,0.00021,2]
[426327223,1782309041000,-486.78213,0.0002093,2]
[426327202,1782309041000,-1139.0,0.0002,2]
[426327220,1782309041000,-489.820991,0.000207,2]
[426327198,1782309041000,-182.0,0.0002,2]
[426327197,1782309041000,-226.0,0.0002,2]
[426327170,1782309041000,-1501.33006636,0.00018077,2]
[426327174,1782309041000,-1004.77277059,0.000185,2]
[426327171,1782309041000,-1004.77277059,0.000182,2]
[426327176,1782309041000,-1004.77277059,0.000189,2]
[426327181,1782309041000,-1501.33006636,0.00019041,2]
[426327177,1782309041000,-778.0,0.00018905,5]
[426327178,1782309041000,-390.18765967,0.00019,2]
[426327179,1782309041000,-550.14550013,0.0001903,2]
[426327188,1782309041000,-150.0,0.00019726,2]
[426327186,1782309041000,-1004.77277059,0.000197,2]
[426327184,1782309041000,-5529.0,0.000193,5]
[426327183,1782309041000,-1004.77277059,0.000193,2]
[426327187,1782309041000,-150.0,0.00019726,2]
[426327180,1782309041000,-20338.52205221,0.00019041,2]
[426327196,1782309041000,-1701.0,0.0002,2]
[426327185,1782309041000,-1004.77277059,0.000195,2]
[426327195,1782309041000,-1160.0,0.0002,2]
[426327199,1782309041000,-736.0,0.0002,2]
[426327194,1782309041000,-50000.0,0.0002,2]
[426327193,1782309041000,-363.0,0.0002,2]
[426327191,1782309041000,-214.5,0.0002,2]
[426327201,1782309041000,-270.0,0.0002,2]
[426327189,1782309041000,-200.0,0.00019726,2]
[426327200,1782309041000,-228.0,0.0002,2]
[426327190,1782309041000,-151.0,0.00019997,2]
[426327192,1782309041000,-321.0,0.0002,2]
[426327259,1782309042000,-151.0,0.00021235,2]
[426327256,1782309042000,-151.0,0.00021235,2]
[426327248,1782309042000,-185.23,0.00021175,2]
[426327251,1782309042000,-489.820991,0.00021187,2]
[426327260,1782309042000,-151.0,0.00021235,2]
[426327253,1782309042000,-151.0,0.00021235,2]
[426327255,1782309042000,-1449.61944935,0.00021235,2]
[426327254,1782309042000,-200.0,0.00021235,2]
[426327250,1782309042000,-185.24,0.00021175,2]
[426327257,1782309042000,-646.65982734,0.00021235,2]
[426327258,1782309042000,-151.0,0.00021235,2]
[426327261,1782309042000,-174.61919141,0.00021235,2]
[426327249,1782309042000,-151.0,0.00021175,2]
[426327262,1782309042000,-209.40437688,0.00021235,2]
[426327252,1782309042000,-292.91239367,0.00021235,2]
[426327247,1782309042000,-151.0,0.00021175,2]
[426327233,1782309042000,-226.0,0.00021,2]
[426327246,1782309042000,-185.15,0.00021175,2]
[426327264,1782309042000,-157.72012091,0.00021235,2]
[426327230,1782309042000,-363.0,0.00021,2]
[426327231,1782309042000,-1160.0,0.00021,2]
[426327232,1782309042000,-1701.0,0.00021,2]
[426327234,1782309042000,-182.0,0.00021,2]
[426327235,1782309042000,-736.0,0.00021,2]
[426327237,1782309042000,-270.0,0.00021,2]
[426327236,1782309042000,-228.0,0.00021,2]
[426327238,1782309042000,-1139.0,0.00021,2]
[426327239,1782309042000,-151.0,0.00021,2]
[426327240,1782309042000,-518.0,0.00021,2]
[426327243,1782309042000,-486.78213,0.0002116,2]
[426327242,1782309042000,-271.0,0.00021109,2]
[426327241,1782309042000,-489.820991,0.00021065,2]
[426327244,1782309042000,-151.0,0.00021175,2]
[426327245,1782309042000,-185.27,0.00021175,2]
[426327263,1782309042000,-151.0,0.00021235,2]
[426327279,1782309042000,-500.0,0.00021235,2]
[426327267,1782309042000,-500.0,0.00021235,2]
[426327284,1782309042000,-151.0,0.00021235,2]
[426327286,1782309042000,-151.0,0.00021235,2]
[426327289,1782309042000,-151.0,0.00021235,2]
[426327288,1782309042000,-152.0,0.00021235,2]
[426327299,1782309042000,-152.0,0.00021235,2]